fUST/lending_fUST_20250601
["ID","MTS","AMOUNT","RATE_DAILY","PERIOD"]
[363609872,1748784640848,-430.0,0.00019723,2]
[363609874,1748784640857,-430.0,0.00019723,2]
[363609877,1748784640867,-456.42,0.00019723,2]
[363609881,1748784640877,-500.28,0.00019996,2]
[363609884,1748784640887,-710.31,0.00019996,2]
[363609887,1748784640898,-1010.28,0.00019996,2]
[363609890,1748784640907,-430.0,0.00019996,2]
[363609893,1748784640917,-459.62,0.00019996,2]
[363609896,1748784640926,-685.39,0.00019996,2]
[363609899,1748784640935,-430.0,0.00019997,2]
[363609902,1748784640945,-430.0,0.00019997,2]
[363609905,1748784640956,-456.42,0.00019997,2]
[363609908,1748784640966,-503.18,0.0002,2]
[363609910,1748784640975,-500.0,0.00020067,2]
[363609914,1748784640985,-322.967591,0.00020187,2]
[363609917,1748784640995,-500.28,0.0002027,2]
[363609919,1748784641004,-710.31,0.0002027,2]
[363609921,1748784641013,-1010.28,0.0002027,2]
[363609923,1748784641022,-430.0,0.0002027,2]
[363609925,1748784641032,-459.62,0.0002027,2]
[363609927,1748784641042,-685.39,0.0002027,2]
[363609929,1748784641051,-430.0,0.00020271,2]
[363609932,1748784641060,-430.0,0.00020271,2]
[363609935,1748784641069,-456.42,0.00020271,2]
[363609938,1748784641078,-500.28,0.00020544,2]
[363609940,1748784641087,-710.31,0.00020544,2]
[363609942,1748784641097,-1010.28,0.00020544,2]
[363609944,1748784641106,-430.0,0.00020544,2]
[363609945,1748784641115,-459.62,0.00020544,2]
[363609947,1748784641125,-685.39,0.00020544,2]
[363609950,1748784641135,-430.0,0.00020545,2]
[363609964,1748784641257,-430.0,0.00020545,2]
[363609966,1748784641268,-456.42,0.00020545,2]
[363609968,1748784641277,-500.0,0.000206,2]
[363609970,1748784641287,-280.03,0.000206,2]
[363609972,1748784641298,-500.28,0.00020818,2]
[363609974,1748784641308,-710.31,0.00020818,2]
[363609976,1748784641318,-1010.28,0.00020818,2]
[363609978,1748784641327,-430.0,0.00020818,2]
[363609980,1748784641337,-459.62,0.00020818,2]
[363609982,1748784641347,-685.39,0.00020818,2]
[363609984,1748784641356,-430.0,0.00020819,2]
[363609986,1748784641366,-430.0,0.00020819,2]
[363609988,1748784641375,-456.42,0.00020819,2]
[363609991,1748784641385,-500.97,0.00021,2]
[363609992,1748784641395,-500.28,0.00021092,2]
[363609994,1748784641405,-710.31,0.00021092,2]
[363609997,1748784641414,-1010.28,0.00021092,2]
[363609998,1748784641424,-430.0,0.00021092,2]
[363610001,1748784641433,-459.62,0.00021092,2]
[363610003,1748784641443,-685.39,0.00021092,2]
[363610005,1748784641453,-430.0,0.00021093,2]
[363610007,1748784641462,-430.0,0.00021093,2]
[363610009,1748784641472,-456.42,0.00021093,2]
[363610011,1748784641481,-500.28,0.00021366,2]
[363610013,1748784641491,-710.31,0.00021366,2]
[363610015,1748784641500,-1010.28,0.00021366,2]
[363610017,1748784641510,-430.0,0.00021366,2]
[363610019,1748784641520,-459.62,0.00021366,2]
[363610021,1748784641530,-685.39,0.00021366,2]
[363610023,1748784641539,-463.01295285,0.00021367,2]
[363610025,1748784641549,-430.0,0.00021367,2]
[363610027,1748784641558,-456.42,0.00021367,2]
[363610029,1748784641567,-500.28,0.0002164,2]
[363610031,1748784641577,-710.31,0.0002164,2]
[363610033,1748784641586,-1010.28,0.0002164,2]
[363610035,1748784641596,-430.0,0.0002164,2]
[363610037,1748784641605,-459.62,0.0002164,2]
[363610039,1748784641615,-685.39,0.0002164,2]
[363610041,1748784641625,-430.0,0.00021641,2]
[363610043,1748784641634,-456.42,0.00021641,2]
[363610045,1748784641643,-500.28,0.00021914,2]
[363610047,1748784641655,-710.31,0.00021914,2]
[363610049,1748784641664,-1010.28,0.00021914,2]
[363610051,1748784641674,-430.0,0.00021914,2]
[363610053,1748784641683,-459.62,0.00021914,2]
[363610055,1748784641694,-685.39,0.00021914,2]
[363610057,1748784641703,-430.0,0.00021915,2]
[363610059,1748784641712,-456.42,0.00021915,2]
[363610061,1748784641721,-364.3782178,0.00021945,2]
[363610063,1748784641731,-364.3782178,0.00021945,2]
[363610065,1748784641741,-254.01,0.0002199,10]
[363610067,1748784641750,-211.68,0.0002199,10]
[363610069,1748784641760,-176.4,0.0002199,10]
[363610071,1748784641770,-1025.81927466,0.00021997,2]
[363610073,1748784641779,-500.0,0.00021997,2]
[363610075,1748784641788,-500.0,0.00021997,2]
[363610077,1748784641798,-1025.81927466,0.00021997,2]
[363610079,1748784641807,-1025.81927466,0.00021997,2]
[363610081,1748784641816,-1025.81927466,0.00021997,2]
[363610083,1748784641826,-236.91312775,0.00021997,2]
[363610085,1748784641835,-1025.81927466,0.00021997,2]
[363610087,1748784641845,-500.0,0.00021997,2]
[363610089,1748784641855,-500.0,0.00021997,2]
[363610091,1748784641864,-1025.81927466,0.00021997,2]
[363610093,1748784641873,-1025.81927466,0.00021997,2]
[363610095,1748784641883,-1025.81927466,0.00021997,2]
[363610097,1748784641892,-500.0,0.00021997,2]
[363610099,1748784641901,-500.0,0.00021997,2]
[363610101,1748784641911,-622.203918,0.00021997,2]
[363610103,1748784641920,-1025.81927466,0.00021997,2]
[363610105,1748784641930,-500.0,0.00021997,2]
[363610107,1748784641939,-1025.81927466,0.00021997,2]
[363610109,1748784641948,-1025.81927466,0.00021997,2]
[363610111,1748784641958,-1025.81927466,0.00021997,2]
[363610113,1748784641967,-1025.81927466,0.00021997,2]
[363610115,1748784641976,-1025.81927466,0.00021997,2]
[363610117,1748784641985,-1025.81927466,0.00021997,2]
[363610119,1748784641995,-160.0,0.00021999,2]
[363610121,1748784642003,-198.0,0.00022,2]
[363610123,1748784642013,-500.0,0.00022,3]
[363610125,1748784642025,-198.0,0.00022,2]
[363610127,1748784642035,-2578.47,0.00022,2]
[363610129,1748784642044,-126786.23,0.00022,7]
[363610131,1748784642053,-175.91811029,0.00022088,2]
[363610133,1748784642063,-500.28,0.00022188,2]
[363610135,1748784642073,-710.31,0.00022188,2]
[363610137,1748784642083,-1010.28,0.00022188,2]
[363610139,1748784642092,-430.0,0.00022188,2]
[363610141,1748784642102,-459.62,0.00022188,2]
[363610143,1748784642111,-685.39,0.00022188,2]
[363610145,1748784642121,-430.0,0.00022189,2]
[363610147,1748784642130,-456.42,0.00022189,2]
[363610149,1748784642140,-215.0915961,0.00022219,2]
[363610151,1748784642150,-158.4848398,0.00022219,2]
[363610153,1748784642159,-153.0,0.00022219,2]
[363610156,1748784642169,-572.3927371,0.00022219,2]
[363610157,1748784642179,-572.3927371,0.00022219,2]
[363610159,1748784642191,-153.0,0.00022219,2]
[363610162,1748784642200,-153.0,0.00022219,2]
[363610164,1748784642210,-157.7464515,0.00022219,2]
[363610166,1748784642220,-572.3927371,0.00022219,2]
[363610168,1748784642230,-316.8560814,0.00022219,2]
[363610170,1748784642239,-153.0,0.00022219,2]
[363610172,1748784642248,-572.3927371,0.00022219,2]
[363610174,1748784642257,-153.0,0.00022219,2]
[363610176,1748784642266,-306.4242624,0.00022219,2]
[363610177,1748784642277,-572.3927371,0.00022219,2]
[363610179,1748784642286,-572.3927371,0.00022219,2]
[363610181,1748784642296,-153.0,0.00022219,2]
[363610183,1748784642305,-190.8638777,0.00022219,2]
[363610185,1748784642315,-572.3927371,0.00022219,2]
[363610187,1748784642324,-153.0,0.00022219,2]
[363610189,1748784642334,-572.3927371,0.00022219,2]
[363610191,1748784642343,-500.0,0.00022259,2]
[363610193,1748784642352,-500.28,0.00022462,2]
[363610194,1748784642361,-710.31,0.00022462,2]
[363610196,1748784642371,-1010.28,0.00022462,2]
[363610199,1748784642381,-430.0,0.00022462,2]
[363610200,1748784642390,-459.62,0.00022462,2]
[363610202,1748784642400,-685.39,0.00022462,2]
[363610204,1748784642409,-271.87,0.00022463,2]
[363610207,1748784642419,-456.42,0.00022463,2]
[363610209,1748784642430,-405.0,0.00022648,2]
[363610211,1748784642440,-154.67873888,0.00022648,2]
[363610212,1748784642449,-207.4,0.00022648,2]
[363610214,1748784642459,-500.0,0.00022648,2]
[363610217,1748784642468,-500.0,0.00022648,2]
[363610218,1748784642478,-500.0,0.00022648,2]
[363610221,1748784642487,-5000.0,0.00022648,2]
[363610222,1748784642497,-500.0,0.00022648,2]
[363610224,1748784642506,-500.0,0.00022648,2]
[363610226,1748784642519,-500.0,0.00022648,2]
[363610228,1748784642529,-500.0,0.00022648,2]
[363610231,1748784642539,-500.0,0.00022648,2]
[363610232,1748784642548,-500.0,0.00022648,2]
[363610235,1748784642558,-500.0,0.00022648,2]
[363610236,1748784642567,-500.0,0.00022648,2]
[363610238,1748784642577,-500.0,0.00022648,2]
[363610241,1748784642586,-500.0,0.00022648,2]
[363610242,1748784642596,-500.0,0.00022648,2]
[363610245,1748784642606,-500.0,0.00022648,2]
[363610247,1748784642615,-500.28,0.00022736,2]
[363610249,1748784642625,-710.31,0.00022736,2]
[363610250,1748784642634,-1010.28,0.00022736,2]
[363610252,1748784642643,-533.99,0.00022736,2]
[363610255,1748784642656,-459.62,0.00022736,2]
[363610256,1748784642665,-685.39,0.00022736,2]
[363610258,1748784642675,-456.42,0.00022737,2]
[363610260,1748784642684,-308.6687316,0.00022767,2]
[363610263,1748784642694,-280.03,0.000228,7]
[363610264,1748784642705,-9859.40490574,0.00022918,2]
[363610266,1748784642715,-5000.0,0.00022918,2]
[363610269,1748784642725,-5000.0,0.00022918,2]
[363610270,1748784642735,-5000.0,0.00022918,2]
[363610272,1748784642746,-5000.0,0.00022918,2]
[363610274,1748784642755,-499.99999901,0.0002298,2]
[363610276,1748784642764,-30391.77,0.00023,6]
[363610278,1748784642774,-122938.48,0.00023,6]
[363610280,1748784642783,-500.0,0.00023,2]
[363610282,1748784642793,-500.0,0.00023,2]
[363610284,1748784642802,-500.0,0.00023,3]
[363610286,1748784642811,-500.0,0.00023,3]
[363610288,1748784642821,-43244.14857093,0.00023,2]
[363610290,1748784642831,-188005.57299744,0.00023,3]
[363610292,1748784642840,-500.34,0.0002301,2]
[363610294,1748784642849,-710.32,0.0002301,2]
[363610296,1748784642858,-1010.39672862,0.0002301,2]
[363610298,1748784642868,-459.62,0.0002301,2]
[363610300,1748784642877,-685.52,0.0002301,2]
[363610302,1748784642885,-456.49000001,0.00023011,2]
[363610304,1748784642894,-155.3651621,0.00023014,2]
[363610306,1748784642904,-198.0,0.00023014,7]
[363610308,1748784642913,-1079.3775003,0.00023041,2]
[363610311,1748784642922,-417.3466021,0.00023041,2]
[363610313,1748784642931,-153.0,0.00023041,2]
[363610315,1748784642941,-158.4848398,0.00023041,2]
[363610317,1748784642950,-5000.0,0.00023196,2]
[363610319,1748784642959,-151.0,0.000233,7]
[363610321,1748784642968,-1283.687158,0.00023324,3]
[363610323,1748784642977,-151.0,0.000234,8]
[363610324,1748784642988,-391.12,0.000235,7]
[363610327,1748784642997,-2578.47,0.000235,2]
[363610328,1748784643006,-126786.23,0.000235,7]
[363610330,1748784643016,-28732.12,0.000235,2]
[363610332,1748784643026,-3695.69825899,0.00023562,2]
[363610335,1748784643036,-151.0,0.00023599,7]
[363610337,1748784643046,-619.666959,0.00023599,7]
[363610339,1748784643055,-619.666959,0.00023599,7]
[363610341,1748784643066,-151.0,0.00023599,7]
[363610343,1748784643075,-151.0,0.000236,6]
[363610345,1748784643085,-5000.0,0.00023665,30]
[363610347,1748784643095,-5000.0,0.00023665,30]
[363610349,1748784643104,-5000.0,0.00023665,30]
[363610351,1748784643114,-5000.0,0.00023665,30]
[363610353,1748784643123,-5000.0,0.00023665,30]
[363610355,1748784643133,-5000.0,0.00023665,30]
[363610357,1748784643143,-1019.5,0.00023665,30]
[363610359,1748784643152,-157.461914,0.00023695,3]
[363610361,1748784643161,-175.527556,0.00023695,3]
[363610363,1748784643171,-8534.10134727,0.000237,3]
[363610365,1748784643181,-153.0,0.000237,31]
[363610367,1748784643190,-153.0,0.000237,31]
[363610369,1748784643200,-153.0,0.000237,31]
[363610371,1748784643210,-153.0,0.000237,31]
[363610373,1748784643223,-153.0,0.000237,31]
[363610375,1748784643233,-153.0,0.000237,31]
[363610377,1748784643245,-153.0,0.000237,31]
[363610379,1748784643255,-153.0,0.000237,31]
[363610381,1748784643264,-153.0,0.000237,31]
[363610382,1748784643273,-153.0,0.000237,31]
[363610384,1748784643282,-153.0,0.000237,31]
[363610386,1748784643292,-153.0,0.000237,31]
[363610389,1748784643302,-153.0,0.000237,31]
[363610390,1748784643311,-153.0,0.000237,31]
[363610392,1748784643319,-153.0,0.000237,31]
[363610394,1748784643329,-175.91811029,0.000237,2]
[363610396,1748784643338,-160.0,0.000237,3]
[363610398,1748784643347,-1740.08153917,0.000237,2]
[363610400,1748784643356,-1802.47377395,0.000237,30]
[363610402,1748784643366,-423.51412927,0.000237,3]
[363610404,1748784643375,-229.3709046,0.000237,3]
[363610406,1748784643385,-1740.08153913,0.00023707,2]
[363610408,1748784643394,-1740.08153913,0.00023713,2]
[363610410,1748784643403,-1740.08153913,0.0002372,2]
[363610412,1748784643413,-1740.08153913,0.00023726,2]
[363610414,1748784643423,-1740.08153913,0.00023733,2]
[363610416,1748784643432,-1740.08153913,0.00023739,2]
[363610418,1748784643442,-5000.0,0.00023744,2]
[363610420,1748784643451,-1740.08153913,0.00023746,2]
[363610422,1748784643460,-1740.08153913,0.00023752,2]
[363610424,1748784643470,-1740.08153913,0.00023759,2]
[363610426,1748784643480,-12666.87825251,0.00023783,30]
[363610428,1748784643489,-5000.0,0.00023783,30]
[363610430,1748784643498,-5000.0,0.00023783,30]
[363610432,1748784643507,-5000.0,0.00023783,30]
[363610434,1748784643517,-5000.0,0.00023783,30]
[363610436,1748784643527,-5000.0,0.00023783,30]
[363610438,1748784643537,-5000.0,0.00023783,30]
[363610440,1748784643546,-5000.0,0.00023783,30]
[363610442,1748784643556,-5000.0,0.00023783,30]
[363610444,1748784643566,-5000.0,0.00023783,30]
[363610446,1748784643575,-5000.0,0.00023783,30]
[363610448,1748784643584,-5000.0,0.00023783,30]
[363610450,1748784643594,-5000.0,0.00023783,30]
[363610451,1748784643604,-5000.0,0.00023783,30]
[363610452,1748784643613,-5000.0,0.00023783,30]
[363610453,1748784643622,-5000.0,0.00023783,30]
[363610454,1748784643631,-5000.0,0.00023783,30]
[363610455,1748784643640,-151.0,0.00023784,7]
[363610456,1748784643649,-619.666959,0.00023784,7]
[363610457,1748784643661,-619.666959,0.00023784,7]
[363610459,1748784643670,-151.0,0.00023784,7]
[363610461,1748784643679,-2000.0,0.00023799,7]
[363610463,1748784643688,-2000.0,0.00023799,7]
[363610465,1748784643698,-2000.0,0.00023799,7]
[363610467,1748784643707,-2000.0,0.00023799,7]
[363610469,1748784643717,-2000.0,0.00023799,7]
[363610471,1748784643727,-1978.92,0.00023799,7]
[363610473,1748784643737,-500.0,0.00023799,7]
[363610476,1748784643747,-500.0,0.00023799,7]
[363610478,1748784643756,-10362.66294204,0.000238,3]
[363610480,1748784643766,-92436.04660888,0.000238,2]
[363610481,1748784643775,-2000.0,0.000238,2]
[363610482,1748784643784,-2000.0,0.000238,2]
[363610483,1748784643794,-2000.0,0.000238,2]
[363610485,1748784643803,-151.0,0.000238,7]
[363610487,1748784643812,-151.0,0.000238,7]
[363610490,1748784643822,-151.0,0.000238,7]
[363610493,1748784643832,-151.0,0.000238,7]
[363610495,1748784643841,-151.0,0.000238,7]
[363610497,1748784643850,-151.0,0.000238,7]
[363610499,1748784643860,-151.0,0.000238,2]
[363610501,1748784643871,-149114.46343898,0.000238,7]
[363610522,1748784644067,-2471.96086571,0.000238,7]
[363610525,1748784644080,-869.77412244,0.000238,7]
[363610527,1748784644091,-15259.31300776,0.000238,7]
[363610529,1748784644103,-18653.903,0.000238,7]
[363610531,1748784644114,-1361.77170473,0.000238,7]
[363610534,1748784644129,-5419.91928675,0.000238,7]
[363610536,1748784644141,-44807.6905871,0.000238,7]
[363610538,1748784644154,-2336.0566109,0.000238,7]
[363610541,1748784644165,-5028.46370977,0.000238,7]
[363610794,1748784646671,-430.0,0.00016708,2]
[363610796,1748784646681,-430.0,0.00016708,2]
[363610798,1748784646691,-430.0,0.00016982,2]
[363610800,1748784646702,-430.0,0.00016982,2]
[363610802,1748784646712,-60.2,0.00017256,2]
[363611622,1748785539141,-178.7122255,0.00016608,2]
[363611623,1748785539163,-225.2009868,0.0001668,2]
[363611624,1748785539186,-300.0,0.00016706,2]
[363611625,1748785539209,-430.0,0.00016706,2]
[363611626,1748785539232,-500.0,0.00016706,2]
[363611627,1748785539255,-500.0,0.00016706,2]
[363611628,1748785539278,-500.0,0.00016706,2]
[363611629,1748785539301,-390.88558634,0.00016706,2]
[363611630,1748785539325,-430.0,0.00016707,2]
[363611631,1748785539347,-430.0,0.00016707,2]
[363611632,1748785539370,-430.0,0.00016707,2]
[363611633,1748785539393,-430.0,0.00016707,2]
[363611634,1748785539416,-430.0,0.00016707,2]
[363611635,1748785539439,-430.0,0.00016707,2]
[363611636,1748785539461,-430.0,0.00016707,2]
[363611637,1748785539483,-430.0,0.00016707,2]
[363611638,1748785539505,-430.0,0.00016707,2]
[363611639,1748785539527,-430.0,0.00016707,2]
[363611640,1748785539552,-430.0,0.00016707,2]
[363611641,1748785539574,-430.0,0.00016707,2]
[363611642,1748785539596,-468.3,0.00016707,2]
[363611643,1748785539618,-430.0,0.00016707,2]
[363611644,1748785539644,-430.0,0.00016707,2]
[363611645,1748785539666,-554.09,0.00016707,2]
[363611646,1748785539687,-515.33537481,0.00016707,2]
[363611647,1748785539711,-430.0,0.00016707,2]
[363611648,1748785539734,-430.0,0.00016707,2]
[363611649,1748785539756,-430.0,0.00016707,2]
[363611650,1748785539778,-430.0,0.00016707,2]
[363611651,1748785539800,-430.0,0.00016707,2]
[363611652,1748785539824,-430.0,0.00016707,2]
[363611653,1748785539846,-258.31429673,0.00016707,2]
[363611656,1748785635095,-430.0,0.00016706,2]
[363611657,1748785635118,-430.0,0.00016706,2]
[363611658,1748785635143,-430.0,0.00016706,2]
[363611659,1748785635171,-171.68570327,0.00016707,2]
[363611660,1748785635195,-430.0,0.00016707,2]
[363611661,1748785635221,-430.0,0.00016707,2]
[363611662,1748785635245,-430.0,0.00016707,2]
[363611663,1748785635267,-430.0,0.00016707,2]
[363611664,1748785635288,-430.0,0.00016707,2]
[363611665,1748785635313,-430.0,0.00016707,2]
[363611666,1748785635336,-430.0,0.00016707,2]
[363611667,1748785635361,-430.0,0.00016707,2]
[363611668,1748785635385,-430.0,0.00016707,2]
[363611669,1748785635408,-430.0,0.00016707,2]
[363611670,1748785635433,-430.0,0.00016707,2]
[363611671,1748785635457,-430.0,0.00016707,2]
[363611672,1748785635480,-430.0,0.00016707,2]
[363611673,1748785635504,-430.0,0.00016707,2]
[363611674,1748785635527,-430.0,0.00016707,2]
[363611675,1748785635551,-430.0,0.00016707,2]
[363611676,1748785635574,-434.95,0.00016707,2]
[363611677,1748785635597,-430.0,0.00016707,2]
[363611678,1748785635620,-430.0,0.00016707,2]
[363611679,1748785635643,-430.0,0.00016707,2]
[363611680,1748785635667,-430.0,0.00016707,2]
[363611681,1748785635691,-430.0,0.00016707,2]
[363611682,1748785635714,-430.0,0.00016707,2]
[363611683,1748785635739,-430.0,0.00016707,2]
[363611684,1748785635764,-430.0,0.00016707,2]
[363611685,1748785635789,-171.77485687,0.00016707,2]
[363611686,1748785653086,-343.55514313,0.00016707,2]
[363611687,1748785653108,-571.75,0.00016707,2]
[363611688,1748785653133,-430.0,0.00016707,2]
[363611689,1748785653160,-133.66188058,0.00016707,2]
[363611741,1748785832811,-188.45558947,0.00016706,2]
[363611744,1748785832822,-297.02584463,0.00016706,2]
[363611746,1748785832839,-132.97415537,0.00016706,2]
[363611748,1748785832849,-430.0,0.00016706,2]
[363611750,1748785832858,-172.66,0.00016706,2]
[363611752,1748785832868,-455.33,0.00016706,2]
[363611754,1748785832877,-430.0,0.00016706,2]
[363611756,1748785832887,-430.0,0.00016706,2]
[363611758,1748785832897,-430.0,0.00016706,2]
[363611760,1748785832907,-430.0,0.00016706,2]
[363611762,1748785832917,-430.0,0.00016706,2]
[363611764,1748785832927,-430.0,0.00016706,2]
[363611765,1748785832937,-430.0,0.00016706,2]
[363611767,1748785832946,-430.0,0.00016706,2]
[363611769,1748785832957,-164.08,0.00016706,2]
[363611770,1748785832966,-283.38,0.00016706,2]
[363611772,1748785832975,-506.66635129,0.00016707,2]
[363611774,1748785832985,-430.0,0.00016707,2]
[363611776,1748785832995,-430.0,0.00016707,2]
[363611778,1748785833004,-430.0,0.00016707,2]
[363611780,1748785833016,-430.0,0.00016707,2]
[363611782,1748785833028,-430.0,0.00016707,2]
[363611784,1748785833037,-182.43,0.00016707,2]
[363611786,1748785833047,-430.0,0.00016707,2]
[363611788,1748785833057,-430.0,0.00016707,2]
[363611790,1748785833067,-430.0,0.00016707,2]
[363611792,1748785833076,-430.0,0.00016707,2]
[363611794,1748785833086,-430.0,0.00016707,2]
[363611796,1748785833096,-272.42652899,0.00016707,2]
[363611798,1748785833108,-157.57347101,0.00016707,2]
[363611800,1748785833118,-430.0,0.00016707,2]
[363611802,1748785833128,-361.08149833,0.00016707,2]
[363611846,1748785838728,-430.0,0.00016706,2]
[363611848,1748785838738,-68.91850167,0.00016707,2]
[363611850,1748785838748,-430.0,0.00016707,2]
[363611852,1748785838758,-395.37,0.00016707,2]
[363611854,1748785838768,-430.0,0.00016707,2]
[363611856,1748785838778,-166.55,0.00016707,2]
[363611858,1748785838788,-430.0,0.00016707,2]
[363611860,1748785838797,-430.0,0.00016707,2]
[363611862,1748785838806,-401.48,0.00016707,2]
[363611864,1748785838816,-261.5,0.00016707,2]
[363611866,1748785838825,-430.0,0.00016707,2]
[363611868,1748785838835,-433.43,0.00016707,2]
[363611870,1748785838845,-430.0,0.00016707,2]
[363611872,1748785838855,-500.0,0.00016707,2]
[363611874,1748785838865,-430.0,0.00016707,2]
[363611875,1748785838875,-508.59,0.00016707,2]
[363611877,1748785838884,-430.0,0.00016707,2]
[363611879,1748785838894,-430.0,0.00016707,2]
[363611881,1748785838903,-430.0,0.00016707,2]
[363611883,1748785838913,-506.66,0.00016707,2]
[363611885,1748785838922,-430.0,0.00016707,2]
[363611887,1748785838932,-430.0,0.00016707,2]
[363611889,1748785838941,-430.0,0.00016707,2]
[363611891,1748785838951,-430.0,0.00016707,2]
[363611893,1748785838961,-430.0,0.00016707,2]
[363611895,1748785838970,-430.0,0.00016707,2]
[363611897,1748785838979,-430.0,0.00016707,2]
[363611899,1748785838988,-430.0,0.00016707,2]
[363611901,1748785838997,-430.0,0.00016707,2]
[363611903,1748785839007,-430.0,0.00016707,2]
[363611905,1748785839016,-430.0,0.00016707,2]
[363611906,1748785839026,-430.0,0.00016707,2]
[363611908,1748785839036,-430.0,0.00016707,2]
[363611910,1748785839045,-430.0,0.00016707,2]
[363611912,1748785839055,-482.84,0.00016707,2]
[363611914,1748785839065,-430.0,0.00016707,2]
[363611916,1748785839074,-430.0,0.00016707,2]
[363611918,1748785839085,-430.0,0.00016707,2]
[363611920,1748785839094,-1901.0374758,0.00016707,2]
[363611922,1748785839104,-430.0,0.00016708,2]
[363611924,1748785839113,-430.0,0.00016708,2]
[363611926,1748785839123,-430.0,0.00016708,2]
[363611928,1748785839132,-430.0,0.00016708,2]
[363611930,1748785839142,-430.0,0.00016708,2]
[363611932,1748785839152,-430.0,0.00016708,2]
[363611934,1748785839161,-430.0,0.00016708,2]
[363611936,1748785839171,-430.0,0.00016708,2]
[363611938,1748785839180,-430.0,0.00016708,2]
[363611939,1748785839190,-430.0,0.00016708,2]
[363611941,1748785839203,-297.05559962,0.00016708,2]
[363611943,1748785839213,-430.0,0.00016708,2]
[363611945,1748785839223,-430.0,0.00016708,2]
[363611947,1748785839232,-430.0,0.00016708,2]
[363611949,1748785839242,-430.0,0.00016708,2]
[363611951,1748785839252,-430.0,0.00016708,2]
[363611953,1748785839261,-430.0,0.00016709,2]
[363611955,1748785839271,-430.0,0.0001698,2]
[363611957,1748785839281,-153.99,0.0001698,2]
[363611959,1748785839291,-430.0,0.0001698,2]
[363611961,1748785839302,-430.0,0.0001698,2]
[363611963,1748785839312,-430.0,0.0001698,2]
[363611965,1748785839322,-430.0,0.0001698,2]
[363611967,1748785839331,-305.95,0.0001698,2]
[363611969,1748785839341,-430.0,0.0001698,2]
[363611971,1748785839353,-430.0,0.0001698,2]
[363611973,1748785839364,-430.0,0.00016981,2]
[363611975,1748785839374,-563.34,0.00016981,2]
[363611977,1748785839384,-430.0,0.00016981,2]
[363611979,1748785839394,-430.0,0.00016981,2]
[363611981,1748785839403,-430.0,0.00016981,2]
[363611983,1748785839413,-430.0,0.00016981,2]
[363611985,1748785839423,-430.0,0.00016981,2]
[363611987,1748785839432,-430.0,0.00016981,2]
[363611989,1748785839442,-429.93,0.00016981,2]
[363611991,1748785839451,-430.0,0.00016981,2]
[363611993,1748785839461,-430.0,0.00016981,2]
[363611995,1748785839470,-579.05,0.00016981,2]
[363611997,1748785839479,-430.0,0.00016981,2]
[363611999,1748785839489,-536.76,0.00016981,2]
[363612001,1748785839499,-430.0,0.00016981,2]
[363612002,1748785839509,-430.0,0.00016981,2]
[363612004,1748785839519,-430.0,0.00016981,2]
[363612006,1748785839529,-433.86,0.00016981,2]
[363612008,1748785839539,-430.0,0.00016981,2]